fUSD/lending_fUSD_20250208
["ID","MTS","AMOUNT","RATE_DAILY","PERIOD"]
[352345179,1739050246786,-899.53,0.00010547,2]
[352345181,1739050246795,-808.06,0.00010547,2]
[352345183,1739050246806,-528.41,0.00010547,2]
[352345185,1739050246815,-500.0,0.00010547,2]
[352345187,1739050246825,-500.0,0.00010547,2]
[352345189,1739050246834,-504.57,0.00010547,2]
[352345191,1739050246843,-951.36,0.00010547,2]
[352345193,1739050246853,-1150.15,0.00010547,2]
[352345195,1739050246862,-819.97,0.00010547,2]
[352345197,1739050246871,-500.0,0.00010547,2]
[352345199,1739050246880,-500.0,0.00010547,2]
[352345200,1739050246889,-1432.14,0.00010547,2]
[352345203,1739050246900,-957.52,0.00010547,2]
[352345205,1739050246909,-500.0,0.00010547,2]
[352345207,1739050246919,-508.14,0.00010547,2]
[352345209,1739050246929,-549.53,0.00010547,2]
[352345211,1739050246940,-749.69,0.00010547,2]
[352345213,1739050246950,-500.0,0.00010547,2]
[352345215,1739050246959,-500.0,0.00010547,2]
[352345216,1739050246968,-682.67,0.00010547,2]
[352345219,1739050246978,-607.84,0.00010547,2]
[352345221,1739050246988,-500.0,0.00010547,2]
[352345223,1739050246998,-511.0673271,0.0001058,2]
[352345225,1739050247007,-511.06732709,0.00010649,2]
[352345226,1739050247018,-1000.0,0.00010674,2]
[352345229,1739050247028,-500.0,0.00010679,2]
[352345231,1739050247038,-593.57,0.00010679,2]
[352345233,1739050247049,-502.45,0.00010679,2]
[352345235,1739050247059,-786.56,0.00010679,2]
[352345237,1739050247070,-500.0,0.00010679,2]
[352345239,1739050247080,-601.47,0.00010679,2]
[352345241,1739050247090,-589.28,0.00010679,2]
[352345261,1739050247274,-500.0,0.00010679,2]
[352345263,1739050247283,-500.0,0.00010679,2]
[352345265,1739050247293,-2286.35,0.00010679,2]
[352345267,1739050247302,-500.0,0.00010679,2]
[352345269,1739050247312,-694.74,0.00010679,2]
[352345271,1739050247322,-651.21,0.00010679,2]
[352345273,1739050247331,-648.78,0.00010679,2]
[352345275,1739050247340,-500.0,0.0001068,2]
[352345277,1739050247350,-184.5,0.0001068,2]
[352345279,1739050247359,-549.0,0.0001068,2]
[352345281,1739050247368,-500.0,0.0001068,2]
[352345283,1739050247378,-627.67,0.0001068,2]
[352345285,1739050247387,-500.0,0.0001068,2]
[352345287,1739050247396,-330.48,0.0001068,2]
[352345289,1739050247406,-500.0,0.0001068,2]
[352345291,1739050247415,-500.0,0.0001068,2]
[352345293,1739050247424,-500.0,0.0001068,2]
[352345295,1739050247434,-500.0,0.0001068,2]
[352345297,1739050247443,-407.33,0.0001068,2]
[352345299,1739050247453,-500.0,0.0001068,2]
[352345301,1739050247463,-534.17590891,0.0001068,2]
[352345303,1739050247472,-469.4,0.0001068,2]
[352345305,1739050247481,-500.0,0.0001068,2]
[352345307,1739050247490,-170.52,0.0001068,2]
[352345309,1739050247500,-500.0,0.0001068,2]
[352345311,1739050247510,-500.0,0.0001068,2]
[352345313,1739050247519,-401.66723614,0.0001068,2]
[352345315,1739050247528,-500.0,0.0001068,2]
[352345317,1739050247538,-500.0,0.0001068,2]
[352345319,1739050247548,-430.76857531,0.0001068,2]
[352345321,1739050247558,-500.0,0.0001068,2]
[352345323,1739050247568,-513.02341903,0.0001068,2]
[352345325,1739050247578,-500.0,0.0001068,2]
[352345327,1739050247587,-500.0,0.0001068,2]
[352345330,1739050247597,-500.0,0.0001068,2]
[352345331,1739050247606,-500.0,0.0001068,2]
[352345334,1739050247617,-500.0,0.0001068,2]
[352345335,1739050247627,-500.0,0.0001068,2]
[352345338,1739050247637,-500.0,0.0001068,2]
[352345339,1739050247646,-500.0,0.0001068,2]
[352345342,1739050247658,-500.0,0.0001068,2]
[352345344,1739050247668,-500.0,0.0001068,2]
[352345345,1739050247677,-358.93205432,0.0001068,2]
[352345348,1739050247687,-500.0,0.0001068,2]
[352345349,1739050247696,-500.0,0.0001068,2]
[352345351,1739050247706,-500.0,0.0001068,2]
[352345354,1739050247716,-500.0,0.0001068,2]
[352345355,1739050247729,-500.0,0.0001068,2]
[352345358,1739050247739,-500.0,0.0001068,2]
[352345360,1739050247749,-500.0,0.0001068,2]
[352345362,1739050247759,-634.68,0.0001068,2]
[352345364,1739050247770,-500.0,0.0001068,2]
[352345365,1739050247779,-500.0,0.0001068,2]
[352345367,1739050247788,-500.0,0.0001068,2]
[352345369,1739050247798,-500.0,0.0001068,2]
[352345371,1739050247808,-500.0,0.0001068,2]
[352345373,1739050247818,-516.3,0.0001068,2]
[352345375,1739050247828,-517.09223173,0.0001068,2]
[352345377,1739050247837,-500.0,0.0001068,2]
[352345379,1739050247846,-500.0,0.0001068,2]
[352345381,1739050247855,-500.0,0.0001068,2]
[352345383,1739050247865,-500.0,0.0001068,2]
[352345385,1739050247875,-605.9,0.0001068,2]
[352345387,1739050247885,-500.0,0.0001068,2]
[352345389,1739050247894,-500.0,0.0001068,2]
[352345391,1739050247903,-500.0,0.0001068,2]
[352345393,1739050247913,-500.0,0.0001068,2]
[352345395,1739050247923,-500.0,0.0001068,2]
[352345397,1739050247933,-356.81965519,0.0001068,2]
[352345399,1739050247943,-500.0,0.0001068,2]
[352345401,1739050247953,-385.66,0.0001068,2]
[352345403,1739050247963,-500.0,0.0001068,2]
[352345405,1739050247973,-500.0,0.0001068,2]
[352345407,1739050247983,-500.0,0.0001068,2]
[352345409,1739050247993,-320.08,0.0001068,2]
[352345411,1739050248003,-500.0,0.0001068,2]
[352345413,1739050248013,-500.0,0.0001068,2]
[352345415,1739050248023,-500.0,0.0001068,2]
[352345417,1739050248034,-500.0,0.0001068,2]
[352345419,1739050248044,-500.0,0.0001068,2]
[352345421,1739050248054,-500.0,0.0001068,2]
[352345423,1739050248065,-500.0,0.0001068,2]
[352345425,1739050248076,-500.0,0.0001068,2]
[352345427,1739050248086,-500.0,0.0001068,2]
[352345429,1739050248095,-500.0,0.0001068,2]
[352345431,1739050248106,-500.0,0.0001068,2]
[352345433,1739050248116,-500.0,0.0001068,2]
[352345435,1739050248126,-500.0,0.0001068,2]
[352345437,1739050248137,-500.0,0.0001068,2]
[352345439,1739050248148,-500.0,0.0001068,2]
[352345441,1739050248157,-500.0,0.0001068,2]
[352345443,1739050248168,-500.0,0.0001068,2]
[352345446,1739050248178,-500.0,0.0001068,2]
[352345447,1739050248188,-625.54,0.0001068,2]
[352345450,1739050248199,-500.0,0.0001068,2]
[352345451,1739050248209,-225.49444241,0.0001068,2]
[352345454,1739050248220,-500.0,0.0001068,2]
[352345455,1739050248232,-500.0,0.0001068,2]
[352345457,1739050248242,-500.0,0.0001068,2]
[352345459,1739050248252,-500.0,0.0001068,2]
[352345461,1739050248263,-500.0,0.0001068,2]
[352345463,1739050248273,-203.09,0.0001068,2]
[352345465,1739050248283,-500.0,0.0001068,2]
[352345467,1739050248295,-500.0,0.0001068,2]
[352345469,1739050248305,-500.0,0.0001068,2]
[352345472,1739050248317,-500.0,0.0001068,2]
[352345474,1739050248328,-500.0,0.0001068,2]
[352345475,1739050248338,-556.44,0.0001068,2]
[352345476,1739050248349,-500.0,0.0001068,2]
[352345477,1739050248360,-500.0,0.0001068,2]
[352345478,1739050248371,-500.0,0.0001068,2]
[352345479,1739050248383,-550.87,0.0001068,2]
[352345480,1739050248395,-500.0,0.0001068,2]
[352345481,1739050248406,-500.0,0.0001068,2]
[352345482,1739050248417,-552.6,0.0001068,2]
[352345483,1739050248427,-500.0,0.0001068,2]
[352345484,1739050248439,-500.0,0.0001068,2]
[352345485,1739050248449,-500.0,0.0001068,2]
[352345486,1739050248459,-500.35,0.0001068,2]
[352345487,1739050248471,-500.0,0.0001068,2]
[352345488,1739050248483,-500.0,0.0001068,2]
[352345489,1739050248493,-500.0,0.0001068,2]
[352345490,1739050248503,-500.0,0.0001068,2]
[352345491,1739050248514,-500.0,0.0001068,2]
[352345492,1739050248525,-587.07,0.0001068,2]
[352345493,1739050248536,-500.0,0.0001068,2]
[352345494,1739050248547,-500.0,0.0001068,2]
[352345495,1739050248558,-500.0,0.0001068,2]
[352345496,1739050248568,-236.6,0.0001068,2]
[352345497,1739050248578,-500.0,0.0001068,2]
[352345498,1739050248589,-500.0,0.0001068,2]
[352345499,1739050248599,-212.91,0.0001068,2]
[352345500,1739050248609,-500.0,0.0001068,2]
[352345501,1739050248620,-212.8,0.0001068,2]
[352345502,1739050248630,-621.63,0.0001068,2]
[352345503,1739050248640,-500.0,0.0001068,2]
[352345504,1739050248651,-500.0,0.0001068,2]
[352345505,1739050248663,-500.0,0.0001068,2]
[352345506,1739050248674,-500.0,0.0001068,2]
[352345507,1739050248684,-500.0,0.0001068,2]
[352345508,1739050248695,-172.97,0.0001068,2]
[352345509,1739050248705,-529.79,0.0001068,2]
[352345510,1739050248716,-542.29,0.0001068,2]
[352345511,1739050248731,-500.0,0.0001068,2]
[352345512,1739050248741,-500.0,0.0001068,2]
[352345513,1739050248753,-500.0,0.0001068,2]
[352345514,1739050248763,-500.0,0.0001068,2]
[352345515,1739050248774,-629.88,0.0001068,2]
[352345516,1739050248784,-198.04,0.0001068,2]
[352345517,1739050248794,-500.0,0.0001068,2]
[352345518,1739050248806,-500.0,0.0001068,2]
[352345519,1739050248818,-558.09,0.0001068,2]
[352345520,1739050248829,-152.31,0.0001068,2]
[352345521,1739050248841,-574.0,0.0001068,2]
[352345522,1739050248852,-688.65,0.0001068,2]
[352345523,1739050248863,-500.0,0.0001068,2]
[352345524,1739050248875,-265.43,0.0001068,2]
[352345525,1739050248886,-948.22,0.0001068,2]
[352345526,1739050248897,-500.0,0.0001068,2]
[352345527,1739050248907,-549.72,0.0001068,2]
[352345528,1739050248917,-500.0,0.0001068,2]
[352345529,1739050248928,-534.5,0.0001068,2]
[352345530,1739050248940,-500.0,0.0001068,2]
[352345531,1739050248950,-500.0,0.0001068,2]
[352345532,1739050248959,-500.0,0.0001068,2]
[352345533,1739050248970,-500.0,0.0001068,2]
[352345534,1739050248981,-870.71,0.0001068,2]
[352345535,1739050248991,-500.0,0.0001068,2]
[352345536,1739050249002,-591.38,0.0001068,2]
[352345537,1739050249013,-500.0,0.0001068,2]
[352345538,1739050249024,-500.0,0.0001068,2]
[352345539,1739050249036,-653.43,0.0001068,2]
[352345540,1739050249047,-500.0,0.0001068,2]
[352345541,1739050249058,-777.0,0.0001068,2]
[352345542,1739050249069,-581.07,0.0001068,2]
[352345543,1739050249080,-500.0,0.0001068,2]
[352345544,1739050249091,-1000.0,0.0001068,2]
[352345545,1739050249103,-171.72,0.0001068,2]
[352345546,1739050249115,-643.6,0.0001068,2]
[352345547,1739050249126,-580.36,0.0001068,2]
[352345548,1739050249138,-539.24,0.0001068,2]
[352345549,1739050249148,-506.13,0.0001068,2]
[352345550,1739050249159,-717.05,0.0001068,2]
[352345551,1739050249169,-717.24,0.0001068,2]
[352345552,1739050249179,-512.34,0.0001068,2]
[352345553,1739050249191,-500.0,0.0001068,2]
[352345554,1739050249202,-500.0,0.0001068,2]
[352345555,1739050249213,-500.0,0.0001068,2]
[352345556,1739050249223,-151.0,0.0001068,2]
[352345557,1739050249235,-500.0,0.0001068,2]
[352345558,1739050249246,-500.0,0.0001068,2]
[352345559,1739050249257,-500.0,0.0001068,2]
[352345560,1739050249267,-500.0,0.0001068,2]
[352345561,1739050249278,-500.0,0.0001068,2]
[352345562,1739050249288,-500.0,0.00010681,2]
[352345563,1739050249298,-500.0,0.00010681,2]
[352345564,1739050249309,-500.0,0.00010681,2]
[352345566,1739050249320,-613.26,0.00010681,2]
[352345568,1739050249329,-349.88,0.00010681,2]
[352345569,1739050249339,-500.0,0.00010681,2]
[352345570,1739050249349,-500.0,0.00010681,2]
[352345571,1739050249360,-500.0,0.00010681,2]
[352345572,1739050249372,-500.0,0.00010681,2]
[352345573,1739050249382,-500.0,0.00010681,2]
[352345574,1739050249393,-500.0,0.00010681,2]
[352345575,1739050249403,-534.09,0.00010681,2]
[352345576,1739050249412,-500.0,0.00010681,2]
[352345577,1739050249423,-500.0,0.00010681,2]
[352345578,1739050249434,-500.0,0.00010681,2]
[352345579,1739050249444,-311.2,0.00010681,2]
[352345580,1739050249454,-500.0,0.00010681,2]
[352345581,1739050249465,-500.0,0.00010681,2]
[352345582,1739050249475,-500.0,0.00010681,2]
[352345583,1739050249485,-500.0,0.00010681,2]
[352345584,1739050249496,-500.0,0.00010681,2]
[352345585,1739050249506,-500.0,0.00010681,2]
[352345586,1739050249517,-248.75,0.00010681,2]
[352345588,1739050249526,-246.04,0.00010681,2]
[352345590,1739050249536,-500.0,0.00010681,2]
[352345592,1739050249546,-469.56,0.00010681,2]
[352345594,1739050249559,-500.0,0.00010681,2]
[352345595,1739050249569,-500.0,0.00010681,2]
[352345596,1739050249580,-303.27,0.00010681,2]
[352345597,1739050249590,-711.33,0.00010681,2]
[352345599,1739050249600,-197.96,0.00010681,2]
[352345601,1739050249610,-500.0,0.00010681,2]
[352345603,1739050249619,-500.0,0.00010681,2]
[352345604,1739050249629,-286.25,0.00010681,2]
[352345605,1739050249638,-579.23,0.00010681,2]
[352345606,1739050249648,-500.0,0.00010681,2]
[352345607,1739050249658,-500.0,0.00010681,2]
[352345608,1739050249668,-500.0,0.00010681,2]
[352345609,1739050249678,-500.0,0.00010681,2]
[352345610,1739050249687,-500.0,0.00010681,2]
[352345611,1739050249701,-500.0,0.00010681,2]
[352345612,1739050249711,-500.0,0.00010681,2]
[352345613,1739050249722,-500.0,0.00010681,2]
[352345614,1739050249735,-500.0,0.00010681,2]
[352345615,1739050249745,-500.0,0.00010681,2]
[352345616,1739050249755,-500.0,0.00010681,2]
[352345617,1739050249765,-500.0,0.00010681,2]
[352345624,1739050249834,-500.0,0.00010681,2]
[352345625,1739050249844,-537.63,0.00010681,2]
[352345627,1739050249853,-500.0,0.00010681,2]
[352345629,1739050249862,-500.0,0.00010681,2]
[352345631,1739050249872,-500.0,0.00010681,2]
[352345633,1739050249882,-573.64,0.00010681,2]
[352345635,1739050249892,-500.0,0.00010681,2]
[352345637,1739050249902,-180.94,0.00010681,2]
[352345639,1739050249911,-500.0,0.00010681,2]
[352345641,1739050249921,-500.0,0.00010681,2]
[352345643,1739050249931,-500.0,0.00010681,2]
[352345645,1739050249940,-537.55,0.00010681,2]
[352345647,1739050249950,-500.0,0.00010681,2]
[352345649,1739050249960,-500.0,0.00010681,2]
[352345651,1739050249969,-500.0,0.00010681,2]
[352345653,1739050249979,-500.0,0.00010681,2]
[352345655,1739050249989,-500.0,0.00010681,2]
[352345657,1739050249999,-500.0,0.00010681,2]
[352345658,1739050250008,-500.0,0.00010681,2]
[352345660,1739050250018,-500.0,0.00010681,2]
[352345662,1739050250027,-500.0,0.00010681,2]
[352345664,1739050250037,-817.25,0.00010681,2]
[352345666,1739050250046,-500.0,0.00010681,2]
[352345668,1739050250056,-500.0,0.00010681,2]
[352345670,1739050250065,-745.14,0.00010681,2]
[352345672,1739050250074,-500.0,0.00010681,2]
[352345674,1739050250083,-535.86,0.00010681,2]
[352345676,1739050250092,-759.93,0.00010681,2]
[352345678,1739050250101,-500.0,0.00010681,2]
[352345680,1739050250111,-500.0,0.00010681,2]
[352345681,1739050250120,-703.92,0.00010681,2]
[352345683,1739050250129,-613.55,0.00010681,2]
[352345685,1739050250139,-500.0,0.00010681,2]
[352345687,1739050250149,-500.0,0.00010681,2]
[352345689,1739050250158,-500.0,0.00010681,2]
[352345691,1739050250167,-500.0,0.00010681,2]
[352345693,1739050250177,-1367.27,0.00010681,2]
[352345695,1739050250187,-500.0,0.00010681,2]
[352345697,1739050250197,-816.57,0.00010681,2]
[352345699,1739050250206,-500.0,0.00010681,2]
[352345701,1739050250216,-500.0,0.00010681,2]
[352345703,1739050250226,-1048.33,0.00010681,2]
[352345705,1739050250236,-500.0,0.00010681,2]
[352345707,1739050250245,-500.0,0.00010681,2]
[352345709,1739050250255,-500.0,0.00010681,2]
[352345711,1739050250264,-650.44,0.00010681,2]
[352345712,1739050250274,-1186.72,0.00010681,2]
[352345713,1739050250283,-506.78,0.00010681,2]
[352345714,1739050250293,-865.61,0.00010681,2]
[352345715,1739050250303,-345.87571841,0.00010681,2]
[352345716,1739050250312,-500.0,0.00010681,2]
[352345717,1739050250321,-546.88,0.00010681,2]
[352345718,1739050250330,-544.09,0.00010681,2]
[352345719,1739050250340,-869.33,0.00010681,2]
[352345720,1739050250350,-652.37,0.00010681,2]
[352345721,1739050250359,-1567.99,0.00010681,2]
[352345722,1739050250368,-688.47,0.00010681,2]
[352345723,1739050250378,-593.09,0.00010681,2]
[352345724,1739050250388,-685.28,0.00010681,2]
[352345725,1739050250397,-500.0,0.00010681,2]
[352345726,1739050250407,-647.24,0.00010681,2]
[352345727,1739050250416,-500.0,0.00010681,2]
[352345728,1739050250425,-500.0,0.00010681,2]
[352345729,1739050250435,-500.0,0.00010681,2]
[352345730,1739050250444,-546.17,0.00010681,2]
[352345731,1739050250454,-500.0,0.00010681,2]
[352345732,1739050250464,-500.0,0.00010681,2]
[352345733,1739050250473,-500.0,0.00010681,2]
[352345734,1739050250484,-662.1,0.00010681,2]
[352345735,1739050250493,-1136.03,0.00010681,2]
[352345736,1739050250503,-500.0,0.00010681,2]
[352345737,1739050250513,-954.86,0.00010681,2]
[352345738,1739050250522,-584.73,0.00010681,2]
[352345739,1739050250533,-500.0,0.00010681,2]
[352345740,1739050250543,-797.04,0.00010681,2]
[352345741,1739050250552,-890.35,0.00010681,2]
[352345742,1739050250563,-500.0,0.00010681,2]
[352345743,1739050250573,-835.73,0.00010681,2]
[352345744,1739050250583,-500.0,0.00010681,2]
[352345745,1739050250593,-841.66,0.00010681,2]
[352345746,1739050250602,-500.0,0.00010681,2]
[352345747,1739050250611,-1633.27,0.00010681,2]
[352345748,1739050250621,-516.17,0.00010681,2]
[352345749,1739050250630,-637.46,0.00010681,2]
[352345750,1739050250640,-450.448362,0.00010684,2]
[352345751,1739050250650,-430.5103,0.00010684,2]
[352345752,1739050250659,-540.53,0.00010684,2]
[352345753,1739050250670,-500.0,0.00010684,2]
[352345754,1739050250679,-725.14,0.00010684,2]
[352345755,1739050250689,-500.0,0.00010684,2]
[352345756,1739050250699,-743.11,0.00010684,2]
[352345757,1739050250709,-502.24,0.00010684,2]
[352345758,1739050250719,-661.2,0.00010684,2]
[352345759,1739050250733,-500.0,0.00010684,2]
[352345760,1739050250743,-500.0,0.00010684,2]
[352345761,1739050250752,-992.69,0.00010684,2]
[352345762,1739050250761,-538.64,0.00010684,2]
[352345763,1739050250771,-1056.48,0.00010684,2]
[352345764,1739050250780,-500.0,0.00010684,2]
[352345765,1739050250790,-1045.26,0.00010684,2]
[352345766,1739050250800,-500.0,0.00010684,2]
[352345767,1739050250811,-962.11,0.00010684,2]
[352345768,1739050250821,-903.48,0.00010684,2]
[352345769,1739050250830,-1460.39,0.00010684,2]
[352345770,1739050250840,-603.3,0.00010684,2]
[352345771,1739050250849,-899.53,0.00010684,2]
[352345772,1739050250859,-808.06,0.00010684,2]
[352345773,1739050250869,-528.41,0.00010684,2]
[352345774,1739050250879,-291.37156043,0.00010684,2]
[352345775,1739050250889,-500.0,0.00010684,2]
[352345776,1739050250899,-504.57,0.00010684,2]
[352345777,1739050250908,-951.36,0.00010684,2]
[352345778,1739050250917,-1150.15,0.00010684,2]
[352345779,1739050250926,-819.97,0.00010684,2]
[352345780,1739050250936,-500.0,0.00010684,2]
[352345781,1739050250947,-500.0,0.00010684,2]
[352345782,1739050250956,-1432.14,0.00010684,2]
[352345783,1739050250967,-957.52,0.00010684,2]
[352345784,1739050250976,-500.0,0.00010684,2]
[352345785,1739050250986,-508.14,0.00010684,2]
[352345786,1739050250996,-549.53,0.00010684,2]
[352345787,1739050251006,-749.69,0.00010684,2]
[352345788,1739050251016,-500.0,0.00010684,2]
[352345789,1739050251026,-500.0,0.00010684,2]
[352345790,1739050251036,-682.67,0.00010684,2]
[352345791,1739050251045,-607.84,0.00010684,2]
[352345792,1739050251054,-500.0,0.00010684,2]
[352345793,1739050251064,-511.06732709,0.00010718,2]
[352345794,1739050251073,-152.0,0.00010729,3]
[352345795,1739050251082,-222.0,0.0001074,2]
[352345796,1739050251092,-258692.30629162,0.0001078,2]
[352345797,1739050251101,-500.0,0.00010816,2]
[352345798,1739050251110,-593.57,0.00010816,2]
[352345799,1739050251120,-502.45,0.00010816,2]
[352345800,1739050251130,-786.56,0.00010816,2]
[352345801,1739050251139,-500.0,0.00010816,2]
[352345802,1739050251150,-601.47,0.00010816,2]
[352345803,1739050251159,-589.28,0.00010816,2]
[352345804,1739050251169,-500.0,0.00010816,2]
[352345805,1739050251179,-500.0,0.00010816,2]
[352345806,1739050251189,-2286.35,0.00010816,2]
[352345807,1739050251199,-500.0,0.00010816,2]
[352345808,1739050251209,-694.74,0.00010816,2]
[352345809,1739050251220,-651.21,0.00010816,2]
[352345810,1739050251229,-648.78,0.00010816,2]
[352345811,1739050251240,-500.0,0.00010817,2]
[352345812,1739050251250,-500.0,0.00010817,2]
[352345813,1739050251259,-500.0,0.00010817,2]
[352345814,1739050251269,-500.0,0.00010817,2]
[352345815,1739050251278,-548.47,0.00010817,2]
[352345816,1739050251288,-500.0,0.00010817,2]
[352345817,1739050251298,-356.15,0.00010817,2]
[352345818,1739050251307,-500.0,0.00010817,2]
[352345819,1739050251317,-500.0,0.00010817,2]
[352345820,1739050251326,-648.08910995,0.00010817,2]
[352345821,1739050251335,-500.0,0.00010817,2]
[352345822,1739050251345,-500.0,0.00010817,2]
[352345823,1739050251355,-500.0,0.00010817,2]
[352345824,1739050251364,-500.0,0.00010817,2]
[352345825,1739050251374,-628.05,0.00010817,2]
[352345826,1739050251384,-310.57656703,0.00010817,2]
[352345827,1739050251393,-500.0,0.00010817,2]
[352345828,1739050251402,-634.68,0.00010817,2]
[352345829,1739050251412,-500.0,0.00010817,2]
[352345830,1739050251422,-516.3,0.00010817,2]
[352345831,1739050251431,-500.0,0.00010817,2]
[352345832,1739050251440,-226.99,0.00010817,2]
[352345833,1739050251450,-605.9,0.00010817,2]
[352345834,1739050251460,-500.0,0.00010817,2]
[352345835,1739050251469,-500.0,0.00010817,2]
[352345836,1739050251479,-500.0,0.00010817,2]
[352345837,1739050251488,-500.0,0.00010817,2]
[352345838,1739050251498,-500.0,0.00010817,2]
[352345839,1739050251507,-484.86,0.00010817,2]
[352345840,1739050251516,-500.0,0.00010817,2]
[352345841,1739050251525,-411.25,0.00010817,2]
[352345842,1739050251534,-500.0,0.00010817,2]
[352345843,1739050251543,-500.0,0.00010817,2]
[352345844,1739050251553,-500.0,0.00010817,2]
[352345845,1739050251562,-613.34,0.00010817,2]
[352345846,1739050251571,-394.4,0.00010817,2]
[352345847,1739050251580,-625.54,0.00010817,2]
[352345848,1739050251590,-229.85,0.00010817,2]
[352345849,1739050251601,-500.0,0.00010817,2]
[352345850,1739050251611,-435.18,0.00010817,2]
[352345851,1739050251620,-409.04,0.00010817,2]
[352345852,1739050251630,-576.4,0.00010817,2]
[352345853,1739050251639,-500.0,0.00010817,2]
[352345854,1739050251649,-310.25,0.00010817,2]
[352345855,1739050251659,-215.03,0.00010817,2]
[352345856,1739050251668,-500.0,0.00010817,2]
[352345857,1739050251678,-500.0,0.00010817,2]
[352345858,1739050251688,-556.44,0.00010817,2]
[352345859,1739050251697,-500.0,0.00010817,2]
[352345860,1739050251706,-500.0,0.00010817,2]
[352345861,1739050251716,-552.6,0.00010817,2]
[352345862,1739050251726,-500.0,0.00010817,2]
[352345863,1739050251740,-500.0,0.00010817,2]
[352345864,1739050251749,-500.35,0.00010817,2]
[352345865,1739050251758,-236.48,0.00010817,2]
[352345866,1739050251768,-389.7,0.00010817,2]
[352345867,1739050251779,-500.0,0.00010817,2]
[352345868,1739050251788,-587.07,0.00010817,2]
[352345869,1739050251797,-204.27,0.00010817,2]
[352345870,1739050251808,-380.31,0.00010817,2]
[352345871,1739050251818,-500.0,0.00010817,2]
[352345872,1739050251828,-500.0,0.00010817,2]
[352345873,1739050251837,-500.0,0.00010817,2]
[352345874,1739050251847,-500.0,0.00010817,2]
[352345875,1739050251856,-234.47,0.00010817,2]
[352345876,1739050251866,-251.03413607,0.00010817,2]
[352345877,1739050251876,-500.0,0.00010817,2]
[352345878,1739050251885,-529.79,0.00010817,2]
[352345879,1739050251895,-542.29,0.00010817,2]
[352345880,1739050251904,-352.13,0.00010817,2]
[352345881,1739050251914,-500.0,0.00010817,2]
[352345882,1739050251923,-500.0,0.00010817,2]
[352345883,1739050251932,-500.0,0.00010817,2]
[352345884,1739050251943,-500.0,0.00010817,2]
[352345885,1739050251952,-558.09,0.00010817,2]
[352345886,1739050251963,-574.0,0.00010817,2]
[352345887,1739050251973,-688.65,0.00010817,2]
[352345888,1739050251982,-622.16,0.00010817,2]
[352345889,1739050251994,-948.22,0.00010817,2]
[352345890,1739050252003,-500.0,0.00010817,2]
[352345891,1739050252013,-549.72,0.00010817,2]
[352345892,1739050252023,-500.0,0.00010817,2]